bitfinex/quotes_ETHUSD_20251018
["timestamp","ask_amount","ask_price","bid_price","bid_amount"]
[1760824935545,0.2176,3900.2,3899.5,2.56441714]
[1760824935852,0.1198,3899.6,3899.5,2.56441714]
[1760824936165,0.2188,3899.6,3899.5,2.69241714]
[1760824937032,0.1198,3899.6,3899.5,2.69241714]
[1760824937241,0.1198,3899.6,3899.5,0.128]
[1760824937444,0.2188,3899.6,3898.7,2.56489555]
[1760824937642,0.099,3899.5,3899.2,0.128]
[1760824938183,0.40221942,3900.5,3899.3,0.46144562]
[1760824938395,0.3456,3900.3,3899.5,2.56443133]
[1760824938577,0.3456,3900.3,3899.6,0.02564365]
[1760824938762,0.3456,3900.3,3899.4,0.128]
[1760824938763,1.9456,3900.3,3899.4,0.128]
[1760824938931,0.128,3899.9,3899.4,0.128]
[1760824939138,0.128,3899.9,3898.3,0.27865887]
[1760824939139,0.40221942,3900.5,3899.6,2.56436557]
[1760824939339,0.227,3900.4,3899.7,0.128]
[1760824939833,0.2176,3900.3,3899.7,0.128]
[1760824940086,0.128,3899.9,3899.3,0.128]
[1760824940288,0.2176,3899.8,3899.3,0.128]
[1760824940567,0.128,3899.6,3899.0,0.128]
[1760824941071,0.2176,3899.5,3899.0,0.128]
[1760824941657,0.2176,3899.4,3899.0,0.128]
[1760824941861,0.26229729,3899.4,3899.0,2.69274755]
[1760824942269,0.6336,3900.6,3899.1,0.02564694]
[1760824942467,0.001,3900.7,3899.6,0.128]
[1760824942468,0.04469612,3900.1,3899.6,0.128]
[1760824942782,0.14369612,3900.1,3899.6,0.128]
[1760824943153,0.04469612,3900.1,3899.6,0.128]
[1760824943482,0.099,3900.0,3899.6,0.128]
[1760824943683,0.1196,3899.9,3899.6,0.128]
[1760824943844,0.0992,3899.8,3898.0,0.4378]
[1760824944048,0.123,3898.7,3898.3,2.56515624]
[1760824944255,0.123,3898.7,3898.2,0.002]
[1760824944577,0.2224,3898.7,3898.5,0.128]
[1760824945163,0.04469993,3899.5,3898.9,2.56478284]
[1760824945370,0.04469993,3899.5,3898.9,2.69278284]
[1760824947095,0.04469993,3899.5,3899.1,2.56468852]
[1760824947795,0.128,3899.6,3898.9,0.128]
[1760824948003,0.0997,3899.5,3898.9,0.128]
[1760824948365,0.0997,3899.4,3898.9,0.128]
[1760824948595,0.0997,3899.3,3898.9,0.128]
[1760824948983,0.128,3899.6,3898.9,0.128]
[1760824949298,0.2277,3899.6,3898.9,0.128]
[1760824949501,0.2277,3899.6,3898.9,2.69282394]
[1760824949663,0.128,3899.6,3898.9,2.69282394]
[1760824949863,0.128,3899.6,3898.9,0.128]
[1760824951099,0.04470228,3899.5,3898.9,0.128]
[1760824952708,0.04470228,3899.5,3898.9,2.69282028]
[1760824953124,0.04470228,3899.5,3898.9,0.69756424]
[1760824953418,0.04470228,3899.5,3899.4,2.9131971]
[1760824953921,0.04470228,3899.5,3899.4,3.3489971]
[1760824955405,0.04470228,3899.5,3899.4,2.9131971]
[1760824955779,0.04470228,3899.5,3899.4,2.6924971]
[1760824956813,0.001,3900.3,3899.8,2.56419135]
[1760824956980,0.1001,3900.2,3899.5,3.87]
[1760824957200,0.1001,3900.2,3899.8,0.128]
[1760824960851,0.001,3900.3,3899.8,0.128]
[1760824961142,0.001,3900.3,3900.1,7.40961933]
[1760824961299,0.001,3900.3,3899.9,0.53018951]
[1760824961638,0.001,3900.3,3900.2,2.56397107]
[1760824962095,0.001,3900.3,3900.2,3.02997107]
[1760824962299,0.001,3900.3,3900.2,3.05561078]
[1760824962539,0.001,3900.3,3900.2,6.08654375]
[1760824962830,0.001,3900.3,3900.2,4.33290404]
[1760824964304,0.001,3900.3,3900.2,3.02997107]
[1760824968308,0.001,3900.3,3900.2,2.56397107]
[1760824971049,0.001,3900.3,3900.2,2.69197107]
[1760824971637,0.001,3900.3,3900.2,0.128]
[1760824971821,0.001,3900.3,3900.2,3.18361078]
[1760824972021,0.001,3900.3,3900.2,3.73274169]
[1760824974703,0.001,3900.3,3900.2,7.60274169]
[1760824975110,0.001,3900.3,3900.2,6.56197107]
[1760824975508,0.001,3900.3,3900.2,3.998]
[1760824975739,0.1,3900.3,3899.8,3.87]
[1760824975914,0.1,3900.3,3900.2,2.56397107]
[1760824975915,0.001,3900.3,3900.2,2.56397107]
[1760824976123,0.001,3900.3,3900.2,2.69197107]
[1760824976433,0.001,3900.3,3900.2,3.18361078]
[1760824977044,0.001,3900.3,3900.2,0.128]
[1760824977739,0.001,3900.3,3900.2,2.69197107]
[1760824978426,0.001,3900.3,3900.2,0.128]
[1760824978613,0.001,3900.3,3900.2,2.69197107]
[1760824980342,0.001,3900.3,3900.2,0.128]
[1760824980744,0.001,3900.3,3900.2,2.71761078]
[1760824980928,0.001,3900.3,3900.2,3.18361078]
[1760824981520,0.001,3900.3,3900.2,0.128]
[1760824981720,0.001,3900.3,3900.2,2.69197107]
[1760824981922,0.001,3900.3,3900.2,4.0962159]
[1760824982329,0.001,3900.3,3900.2,2.69197107]
[1760824982634,0.001,3900.3,3900.2,0.128]
[1760824983329,0.001,3900.3,3900.1,0.002]
[1760824983330,0.1016,3900.3,3900.1,0.002]
[1760824983535,0.1006,3900.2,3900.1,0.13]
[1760824984339,0.001,3900.3,3900.1,0.13]
[1760824984546,0.001,3900.3,3900.2,3.02597107]
[1760824984764,0.001,3900.3,3900.2,3.15397107]
[1760824985723,0.001,3900.3,3900.2,2.69197107]
[1760824986144,0.001,3900.3,3900.2,3.17961078]
[1760824986534,0.001,3900.3,3900.2,3.998]
[1760824986735,0.1016,3900.3,3900.2,3.87]
[1760824988731,0.001,3900.3,3900.2,3.87]
[1760824991364,0.6336,3900.2,3900.1,0.002]
[1760824991565,9.789126,3900.2,3900.1,0.002]
[1760824991867,20.548406,3900.2,3900.1,0.002]
[1760824992081,1.728,3900.2,3900.1,0.002]
[1760824992634,1.8286,3900.2,3900.1,0.002]
[1760824993238,5.02617107,3900.2,3900.1,0.002]
[1760824993489,14.127106,3900.2,3900.1,0.002]
[1760824993768,12.31231007,3900.2,3900.1,0.002]
[1760824994463,17.37576106,3900.2,3900.1,0.002]
[1760824994766,11.81187806,3900.2,3900.1,0.002]
[1760824995545,14.93323706,3900.2,3900.1,0.002]
[1760824996466,17.57069106,3900.2,3900.1,0.002]
[1760824997579,35.07087106,3900.2,3900.1,0.002]
[1760824997763,23.92810252,3900.2,3900.1,0.002]
[1760824998166,23.97280554,3900.2,3900.1,0.002]
[1760824998374,23.92810252,3900.2,3900.1,0.002]
[1760824998575,5.74073552,3900.2,3900.1,0.002]
[1760824998774,3.19776831,3899.9,3899.8,0.002]
[1760824999082,29.81566309,3899.9,3899.8,0.002]
[1760824999451,30.31878369,3899.9,3899.8,0.002]
[1760824999652,32.38459286,3899.9,3899.8,0.002]
[1760824999883,18.63801224,3899.9,3899.8,0.002]
[1760825000682,21.56429124,3899.9,3899.8,0.002]
[1760825000849,7.58653993,3899.9,3899.8,0.002]
[1760825001056,7.51224505,3899.9,3899.8,0.002]
[1760825001266,2.17502572,3899.9,3899.8,0.002]
[1760825001861,2.17502572,3899.9,3899.8,0.4373]
[1760825002954,2.17502572,3899.9,3899.8,0.002]
[1760825004482,1.77270512,3899.9,3899.8,0.002]
[1760825010404,1.77270512,3899.9,3899.8,0.4373]
[1760825010563,0.04470512,3899.9,3899.8,0.4373]
[1760825010963,0.128,3900.2,3899.8,0.46294234]
[1760825011978,0.128,3900.2,3899.9,0.02564168]
[1760825012178,0.128,3900.2,3900.0,0.4353]
[1760825012964,0.128,3900.2,3899.8,0.002]
[1760825013160,0.128,3900.2,3899.9,0.4353]
[1760825013472,0.04469262,3900.2,3899.9,3.12745119]
[1760825013676,0.04469262,3900.2,3900.0,0.4353]
[1760825014280,0.04469262,3900.2,3900.1,0.02564036]
[1760825014476,0.04469262,3900.2,3900.1,0.447]
[1760825014885,0.04469262,3900.2,3899.9,0.128]
[1760825015279,0.04469262,3900.2,3899.8,0.002]
[1760825015682,0.04469262,3900.2,3899.8,0.449]
[1760825016495,0.04469262,3900.2,3899.9,0.447]
[1760825017182,0.04469262,3900.2,3899.8,0.002]
[1760825017183,0.04469262,3900.2,3900.0,0.447]
[1760825018216,0.04569262,3900.2,3900.0,0.447]
[1760825018672,0.04569262,3900.2,3899.8,0.002]
[1760825018878,0.04569262,3900.2,3899.8,0.449]
[1760825019099,0.04569262,3900.2,3899.8,0.002]
[1760825019301,0.128,3900.1,3899.8,0.002]
[1760825019577,0.128,3900.1,3899.8,0.449]
[1760825020206,0.128,3900.1,3899.8,0.002]
[1760825022636,0.22,3900.0,3899.8,0.002]
[1760825022936,0.6336,3900.1,3899.8,0.002]
[1760825023137,0.04569262,3900.2,3899.8,0.002]
[1760825023344,0.001,3900.2,3899.9,0.447]
[1760825023631,0.001,3900.2,3899.8,0.002]
[1760825023805,0.128,3899.9,3899.8,0.002]
[1760825024006,0.128,3899.9,3899.8,0.449]
[1760825024422,0.53020773,3899.9,3899.8,0.449]
[1760825025533,0.53020773,3899.9,3899.8,0.002]
[1760825026225,0.57490411,3899.9,3899.8,0.002]
[1760825026834,0.69690411,3899.9,3899.8,0.002]
[1760825030155,2.80850411,3899.9,3899.8,0.002]
[1760825032740,2.17490411,3899.9,3899.8,0.002]
[1760825032941,1.77269638,3899.9,3899.8,0.449]
[1760825033154,1.728,3899.9,3899.8,0.449]
[1760825036438,0.04469488,3899.9,3899.8,0.449]
[1760825036624,0.04469488,3899.9,3899.8,3.01323406]
[1760825036963,0.04469155,3899.9,3899.8,3.95819286]
[1760825037130,0.001,3900.1,3899.8,3.95819286]
[1760825037325,0.001,3900.1,3899.9,0.447]
[1760825037842,0.001,3900.1,3900.0,0.447]
[1760825038358,0.001,3900.1,3899.8,0.002]
[1760825040057,0.128,3900.0,3899.8,0.002]
[1760825041027,1.8496,3899.9,3899.8,0.002]
[1760825041254,5.643711,3899.9,3899.8,0.002]
[1760825041451,4.284866,3899.9,3899.8,0.002]
[1760825042170,4.918466,3899.9,3899.8,0.002]
[1760825042461,7.48263431,3899.9,3899.8,0.002]
[1760825043962,24.83057131,3899.9,3899.8,0.002]
[1760825044148,25.17311416,3899.9,3899.8,0.002]
[1760825044359,25.27598092,3899.9,3899.8,0.002]
[1760825044943,35.59247792,3899.9,3899.8,0.002]
[1760825045343,33.19803133,3899.5,3899.4,0.002]
[1760825045538,40.34421511,3899.5,3899.4,0.002]
[1760825045869,40.44391511,3899.5,3899.4,0.002]
[1760825046084,40.48862907,3899.5,3899.4,0.002]
[1760825046370,32.09502207,3899.5,3899.4,0.002]
[1760825046575,28.84240507,3899.5,3899.4,0.002]
[1760825046777,22.97112607,3899.5,3899.4,0.002]
[1760825046990,24.97057917,3899.5,3899.4,0.002]
[1760825047273,24.14363532,3899.5,3899.4,0.002]
[1760825047478,14.44234372,3899.5,3899.4,0.002]
[1760825047778,14.27744172,3899.5,3899.4,0.002]
[1760825047936,10.07671672,3899.5,3899.4,0.002]
[1760825048138,3.19829441,3899.1,3898.6,0.002]
[1760825048344,20.28950587,3898.7,3898.6,0.002]
[1760825048687,21.00407032,3898.7,3898.6,0.002]
[1760825048843,21.50637928,3898.7,3898.6,0.002]
[1760825049192,26.41512128,3898.7,3898.6,0.002]
[1760825049543,26.18128528,3898.7,3898.6,0.002]
[1760825050043,26.94531728,3898.7,3898.6,0.002]
[1760825050246,26.50673028,3898.7,3898.6,0.002]
[1760825050644,26.55144872,3898.7,3898.6,0.002]
[1760825051038,26.85811172,3898.7,3898.6,0.002]
[1760825051683,25.69276972,3898.7,3898.6,0.002]
[1760825052243,26.61959172,3898.7,3898.6,0.002]
[1760825053382,26.71091372,3898.7,3898.6,0.002]
[1760825053539,26.81380774,3898.7,3898.6,0.002]
[1760825054267,11.61083441,3898.7,3898.6,0.002]
[1760825054580,12.12259131,3898.7,3898.6,0.002]
[1760825055474,18.44149231,3898.7,3898.6,0.002]
[1760825055680,9.56964377,3898.7,3898.6,0.4522]
[1760825055877,8.89167977,3898.7,3898.6,0.4522]
[1760825056182,9.52527977,3898.7,3898.6,0.4522]
[1760825056477,17.51895777,3898.7,3898.6,0.4522]
[1760825056870,5.77381444,3898.7,3898.6,0.4522]
[1760825057391,9.50776444,3898.7,3898.6,0.4522]
[1760825057566,9.91013011,3898.7,3898.6,0.4522]
[1760825058473,10.86519267,3898.7,3898.6,0.4522]
[1760825058677,10.90990708,3898.7,3898.6,0.4522]
[1760825059058,10.86519267,3898.7,3898.6,0.4522]
[1760825059396,10.86977967,3898.7,3898.6,0.4522]
[1760825059559,2.76396567,3898.7,3898.6,0.4522]
[1760825059956,0.40236567,3898.7,3898.6,0.4522]
[1760825061382,0.44707511,3898.7,3898.6,0.4522]
[1760825063991,0.44707511,3898.7,3898.6,3.31895755]
[1760825064289,0.04470944,3898.7,3898.6,3.31895755]
[1760825064491,0.001,3900.1,3899.0,2.5647601]
[1760825064698,0.6336,3900.0,3899.6,0.2143]
[1760825065191,0.04570109,3899.7,3899.6,0.2143]
[1760825065372,0.04570109,3899.7,3899.6,0.6645]
[1760825067502,0.4479461,3899.7,3899.6,0.6645]
[1760825068199,0.40324501,3899.7,3899.6,0.6645]
[1760825068764,2.13124501,3899.7,3898.8,0.4502]
[1760825068996,4.92621154,3899.3,3898.6,0.002]
[1760825069701,5.32852089,3899.3,3898.6,0.002]
[1760825069884,2.76390935,3899.3,3898.6,0.002]
[1760825070087,2.76390935,3899.3,3898.7,0.4502]
[1760825071186,0.0447051,3899.2,3898.7,0.4502]
[1760825071381,0.0447051,3899.2,3898.8,0.4502]
[1760825074095,0.0447051,3899.2,3898.6,0.002]
[1760825074299,0.128,3898.7,3898.6,0.002]
[1760825075302,0.128,3898.7,3898.6,0.4477]
[1760825075910,0.17270502,3898.7,3898.6,0.4477]
[1760825077612,0.04470502,3898.7,3898.6,0.4477]
[1760825080497,0.04470502,3898.7,3898.6,3.01272334]
[1760825080701,0.04470502,3898.7,3898.6,3.71380165]
[1760825081084,0.04470502,3898.7,3898.6,1.14877831]
[1760825082482,0.04470502,3898.7,3898.6,0.4477]
[1760825092824,0.04470502,3898.7,3898.6,3.16637357]
[1760825093327,0.04470502,3898.7,3898.6,3.01272334]
[1760825093531,0.001,3899.0,3898.7,2.56494787]
[1760825093698,0.001,3899.0,3898.8,2.56487135]
[1760825093900,0.001,3899.0,3898.9,0.55775819]
[1760825094404,0.001,3899.0,3898.9,1.00345819]
[1760825094607,0.001,3899.0,3898.6,0.002]
[1760825094830,0.1221,3898.9,3898.6,0.002]
[1760825095029,0.2218,3898.9,3898.6,0.002]
[1760825095508,0.0997,3898.8,3898.6,0.002]
[1760825095901,0.1221,3898.9,3898.6,0.002]
[1760825097505,0.52442063,3898.9,3898.6,0.002]
[1760825100348,0.0997,3898.8,3898.6,0.002]
[1760825101756,3.29825754,3898.7,3898.6,0.002]
[1760825102047,8.71353754,3898.7,3898.6,0.002]
[1760825102248,8.50470854,3898.7,3898.6,0.002]
[1760825103043,5.02625754,3898.7,3898.6,0.002]
[1760825103348,13.22479754,3898.7,3898.6,0.002]
[1760825104339,19.23124354,3898.7,3898.6,0.002]
[1760825105241,19.57892639,3898.7,3898.6,0.002]
[1760825105405,19.95094799,3898.7,3898.6,0.002]
[1760825106162,21.03655099,3898.7,3898.6,0.002]
[1760825106640,7.56606154,3898.7,3898.6,0.002]
[1760825106810,2.13040766,3898.7,3898.6,0.002]
[1760825107344,2.3616,3898.7,3898.6,0.002]
[1760825108359,15.14722054,3898.7,3898.6,0.002]
[1760825109214,5.02625754,3898.7,3898.6,0.002]
[1760825109516,15.34582554,3898.7,3898.6,0.002]
[1760825109914,15.39054213,3898.7,3898.6,0.002]
[1760825111370,5.07097413,3898.7,3898.6,0.002]
[1760825111544,15.38865613,3898.7,3898.6,0.002]
[1760825112426,5.07097413,3898.7,3898.6,0.002]
[1760825112628,14.38865613,3898.7,3898.6,0.002]
[1760825113551,15.41226613,3898.7,3898.6,0.002]
[1760825114139,10.81470313,3898.7,3898.6,0.002]
[1760825114638,15.95690113,3898.7,3898.6,0.002]
[1760825115756,15.95452913,3898.7,3898.6,0.002]
[1760825116758,5.07097413,3898.7,3898.6,0.002]
[1760825117059,16.01432913,3898.7,3898.6,0.002]
[1760825117646,5.07097413,3898.7,3898.6,0.002]
[1760825117859,16.01432913,3898.7,3898.6,0.002]
[1760825118266,15.91462913,3898.7,3898.6,0.002]
[1760825118860,16.01986513,3898.7,3898.6,0.002]
[1760825119851,4.97127413,3898.7,3898.6,0.002]
[1760825120141,16.01986513,3898.7,3898.6,0.002]
[1760825120943,10.98680813,3898.7,3898.6,0.002]
[1760825121144,10.31819613,3898.7,3898.6,0.002]
[1760825121949,4.97127413,3898.7,3898.6,0.002]
[1760825122676,7.60499013,3898.7,3898.6,0.002]
[1760825123143,12.40267713,3898.7,3898.6,0.002]
[1760825123977,4.97127413,3898.7,3898.6,0.002]
[1760825124183,17.20764613,3898.7,3898.6,0.002]
[1760825124676,18.02191058,3898.7,3898.6,0.002]
[1760825125047,28.32774758,3898.7,3898.6,0.002]
[1760825125673,28.28303099,3898.7,3898.6,0.002]
[1760825125977,26.84539799,3898.7,3898.6,0.002]
[1760825126142,27.70273699,3898.7,3898.6,0.002]
[1760825126348,26.95164799,3898.7,3898.6,0.002]
[1760825126545,26.07363299,3898.7,3898.6,0.002]
[1760825126750,17.17136199,3898.7,3898.6,0.002]
[1760825127178,18.38953699,3898.7,3898.6,0.002]
[1760825127361,17.75489299,3898.7,3898.6,0.002]
[1760825127566,17.29414099,3898.7,3898.6,0.002]
[1760825128160,17.99701399,3898.7,3898.6,0.002]
[1760825128470,18.04173227,3898.7,3898.6,0.002]
[1760825128859,17.50783627,3898.7,3898.6,0.002]
[1760825129272,18.01572127,3898.7,3898.6,0.002]
[1760825130286,22.11591899,3898.7,3898.6,0.002]
[1760825131282,23.11330799,3898.7,3898.6,0.002]
[1760825131870,19.67325099,3898.7,3898.6,0.002]
[1760825132248,5.73470039,3898.7,3898.6,0.002]
[1760825132460,19.31814539,3898.7,3898.6,0.002]
[1760825132666,19.36286372,3898.7,3898.6,0.002]
[1760825133394,20.36565672,3898.7,3898.6,0.002]
[1760825133690,19.68698972,3898.7,3898.6,0.002]
[1760825134392,5.77941872,3898.7,3898.6,0.002]
[1760825134561,23.36016272,3898.7,3898.6,0.002]
[1760825135362,5.77941872,3898.7,3898.6,0.002]
[1760825135585,23.35992872,3898.7,3898.6,0.002]
[1760825136186,13.13795472,3898.7,3898.6,0.002]
[1760825136391,13.04946787,3898.7,3898.6,0.4429]
[1760825136687,11.69754487,3898.7,3898.6,0.4429]
[1760825137464,7.34975587,3898.7,3898.6,0.4429]
[1760825137794,7.74793754,3898.7,3898.6,0.4429]
[1760825138487,12.61651054,3898.7,3898.6,0.4429]
[1760825138994,7.36422154,3898.7,3898.6,0.4429]
[1760825139566,9.48262854,3898.7,3898.6,0.4429]
[1760825139898,8.93341254,3898.7,3898.6,0.4429]
[1760825140694,9.19599867,3898.7,3898.6,0.4429]
[1760825140897,9.24071506,3898.7,3898.6,0.4429]
[1760825141593,8.15861006,3898.7,3898.6,0.4429]
[1760825141788,7.85795306,3898.7,3898.6,0.002]
[1760825141997,7.70131906,3898.7,3898.6,0.4429]
[1760825142399,7.49189106,3898.7,3898.6,0.4429]
[1760825142771,16.61798906,3898.7,3898.6,0.4429]
[1760825143509,14.31252006,3898.7,3898.6,0.4429]
[1760825143909,13.80452006,3898.7,3898.6,0.4429]
[1760825144412,11.80452006,3898.7,3898.6,0.4429]
[1760825144711,5.37365406,3898.7,3898.6,0.4429]
[1760825145003,12.31252006,3898.7,3898.6,0.4429]
[1760825145799,5.37365406,3898.7,3898.6,0.4429]
[1760825145997,14.31252006,3898.7,3898.6,0.4429]
[1760825149205,14.31252006,3898.7,3898.6,0.002]
[1760825149206,15.52083206,3898.7,3898.6,0.002]
[1760825149603,15.11845193,3898.7,3898.6,0.002]
[1760825150031,19.22292154,3898.7,3898.6,0.002]
[1760825150184,18.46786754,3898.7,3898.6,0.002]
[1760825151331,20.66235454,3898.7,3898.6,0.002]
[1760825151886,17.20752054,3898.7,3898.6,0.002]
[1760825152285,17.73228954,3898.7,3898.6,0.002]
[1760825152524,18.13467599,3898.7,3898.6,0.002]
[1760825153030,18.17939262,3898.7,3898.6,0.002]
[1760825153191,5.58796062,3898.7,3898.6,0.002]
[1760825153392,18.17939262,3898.7,3898.6,0.002]
[1760825153889,17.77700617,3898.7,3898.6,0.002]
[1760825155338,17.77669817,3898.7,3898.6,0.002]
[1760825156301,5.18557417,3898.7,3898.6,0.002]
[1760825156506,17.77215417,3898.7,3898.6,0.002]
[1760825156707,18.17454269,3898.7,3898.6,0.002]
[1760825157107,16.17666069,3898.7,3898.6,0.002]
[1760825157631,18.00866106,3898.7,3898.6,0.002]
[1760825158207,14.31460706,3898.7,3898.6,0.002]
[1760825158530,15.08594706,3898.7,3898.6,0.002]
[1760825159618,15.78615206,3898.7,3898.6,0.002]
[1760825160629,16.08955906,3898.7,3898.6,0.002]
[1760825160797,11.57515906,3898.7,3898.6,0.002]
[1760825160996,11.61987591,3898.7,3898.6,0.002]
[1760825161733,24.10971291,3898.7,3898.6,0.002]
[1760825161895,22.96270291,3898.7,3898.6,0.002]
[1760825162623,22.66942191,3898.7,3898.6,0.002]
[1760825163009,21.44611791,3898.7,3898.6,0.002]
[1760825163611,22.31953791,3898.7,3898.6,0.002]
[1760825163813,18.32405591,3898.7,3898.6,0.002]
[1760825164012,17.49205591,3898.7,3898.6,0.002]
[1760825164610,5.58796291,3898.7,3898.6,0.002]
[1760825164929,24.69980991,3898.7,3898.6,0.002]
[1760825165131,24.37090991,3898.7,3898.6,0.002]
[1760825165298,20.80487691,3898.7,3898.6,0.002]
[1760825165699,20.86184991,3898.7,3898.6,0.002]
[1760825166420,18.86128291,3898.7,3898.6,0.002]
[1760825166730,20.50072491,3898.7,3898.6,0.002]
[1760825166918,19.61869791,3898.7,3898.6,0.002]
[1760825167828,5.58796291,3898.7,3898.6,0.002]
[1760825167998,19.55889791,3898.7,3898.6,0.002]
[1760825168502,18.88345891,3898.7,3898.6,0.002]
[1760825168903,17.88345891,3898.7,3898.6,0.002]
[1760825169308,18.59802336,3898.7,3898.6,0.002]
[1760825169505,18.55330651,3898.7,3898.6,0.002]
[1760825169816,6.30252875,3898.7,3898.6,0.002]
[1760825170020,19.97807851,3898.7,3898.6,0.002]
[1760825170807,18.54100551,3898.7,3898.6,0.002]
[1760825172008,20.22110851,3898.7,3898.6,0.002]
[1760825172516,20.26582662,3898.7,3898.6,0.002]
[1760825173101,22.88422362,3898.7,3898.6,0.002]
[1760825174032,6.30252862,3898.7,3898.6,0.002]
[1760825174215,26.74860362,3898.7,3898.6,0.002]
[1760825174422,26.07062762,3898.7,3898.6,0.002]
[1760825174652,24.61662862,3898.7,3898.6,0.002]
[1760825174809,21.97444962,3898.7,3898.6,0.002]
[1760825175009,19.53477662,3898.7,3898.6,0.002]
[1760825176444,20.48656162,3898.7,3898.6,0.002]
[1760825177315,6.30252862,3898.7,3898.6,0.002]
[1760825177541,20.57628662,3898.7,3898.6,0.002]
[1760825178381,25.01872562,3898.7,3898.6,0.002]
[1760825178547,24.03803662,3898.7,3898.6,0.002]
[1760825179463,25.02297262,3898.7,3898.6,0.002]
[1760825179843,21.45034562,3898.7,3898.6,0.002]
[1760825180170,11.81759317,3898.7,3898.6,0.4295]
[1760825180538,14.76710717,3898.7,3898.6,0.4295]
[1760825180771,13.94032817,3898.7,3898.6,0.4295]
[1760825181682,12.97332717,3898.7,3898.6,0.4295]
[1760825181861,5.58796417,3898.7,3898.6,0.4295]
[1760825182060,7.95330565,3898.7,3898.6,0.4295]
[1760825182436,5.18557565,3898.7,3898.6,0.4295]
[1760825182636,13.16983765,3898.7,3898.6,0.4295]
[1760825182839,8.45062165,3898.7,3898.6,0.4295]
[1760825183036,5.18557565,3898.7,3898.6,0.4295]
[1760825183271,7.32843865,3898.7,3898.6,0.4295]
[1760825183775,7.85943865,3898.7,3898.6,0.4295]
[1760825184578,12.43902865,3898.7,3898.6,0.4295]
[1760825184955,11.44720265,3898.7,3898.6,0.4295]
[1760825185563,9.26744965,3898.7,3898.6,0.4295]
[1760825186581,2.80868854,3898.7,3898.6,0.4295]
[1760825186884,8.97716908,3898.7,3898.6,0.4295]
[1760825187491,2.76397043,3898.7,3898.6,0.4295]
[1760825189392,2.3616,3898.7,3898.6,0.4295]
[1760825190859,2.40631448,3898.7,3898.6,0.4295]
[1760825191492,4.97127202,3898.7,3898.6,0.4295]
[1760825191693,2.40631448,3898.7,3898.6,0.4295]
[1760825195699,4.97127202,3898.7,3898.6,0.002]
[1760825195899,14.16831902,3898.7,3898.6,0.002]
[1760825196397,11.21494202,3898.7,3898.6,0.002]
[1760825196873,4.97127202,3898.7,3898.6,0.002]
[1760825197075,11.21494202,3898.7,3898.6,0.002]
[1760825198004,9.39698002,3898.7,3898.6,0.002]
[1760825199072,10.09518002,3898.7,3898.6,0.002]
[1760825200069,9.90498002,3898.7,3898.6,0.002]
[1760825200698,9.39698002,3898.7,3898.6,0.002]
[1760825200910,9.39698002,3898.7,3898.6,0.4754]
[1760825201106,11.87420702,3898.7,3898.6,0.4754]
[1760825201409,11.36444402,3898.7,3898.6,0.4754]
[1760825201909,8.79948648,3898.7,3898.6,0.4754]
[1760825202209,8.79496648,3898.7,3898.6,0.4754]
[1760825203177,8.77831448,3898.7,3898.6,0.4754]
[1760825203680,11.34327202,3898.7,3898.6,0.4754]
[1760825204075,4.97127202,3898.7,3898.6,0.4754]
[1760825204406,11.36386402,3898.7,3898.6,0.4754]
[1760825205014,8.09231448,3898.7,3898.6,0.4754]
[1760825205390,8.61482848,3898.7,3898.6,0.4754]
[1760825205577,11.17978602,3898.7,3898.6,0.4754]
[1760825206408,11.35575502,3898.7,3898.6,0.4754]
[1760825206806,8.79079748,3898.7,3898.6,0.4754]
[1760825207022,2.40631448,3898.7,3898.6,0.4754]
[1760825209016,2.80866692,3898.7,3898.6,0.4754]
[1760825209525,2.17506692,3898.7,3898.6,0.4754]
[1760825209822,0.57506692,3898.7,3898.6,0.4754]
[1760825210024,0.17271448,3898.7,3898.6,0.4754]
[1760825210224,0.128,3898.7,3898.6,0.83979751]
[1760825210396,0.001,3899.0,3898.6,0.83979751]
[1760825210597,0.129,3899.0,3898.6,0.36639751]
[1760825210799,0.129,3899.0,3898.7,0.4734]
[1760825211831,0.129,3899.0,3898.8,0.49904891]
[1760825212031,0.001,3899.0,3898.9,0.02564825]
[1760825212334,0.001,3899.0,3898.9,0.4734]
[1760825212826,0.001,3899.0,3898.9,0.87572872]
[1760825213131,0.001,3899.0,3898.9,1.25644348]
[1760825213333,0.04568293,3899.0,3898.9,1.25644348]
[1760825214334,0.04568293,3899.0,3898.9,0.87572872]
[1760825215235,0.04568293,3899.0,3898.9,0.4734]
[1760825217120,0.001,3899.0,3898.9,0.4734]
[1760825220735,0.001,3899.0,3898.9,3.06387422]
[1760825220937,0.001,3899.0,3898.9,3.56951461]
[1760825221118,0.001,3899.0,3898.9,4.6065998]
[1760825221434,0.001,3899.0,3898.9,4.63224805]
[1760825221833,0.001,3899.0,3898.9,4.6065998]
[1760825223152,0.001,3899.0,3898.9,10.93586738]
[1760825223317,0.001,3899.0,3898.9,10.91021913]
[1760825223522,0.001,3899.0,3898.9,13.61521913]
[1760825224165,0.001,3899.0,3898.9,14.24881913]
[1760825224774,0.001,3899.0,3898.9,16.34125113]
[1760825225228,0.001,3899.0,3898.9,14.24881913]
[1760825225418,0.001,3899.0,3898.9,16.83381913]
[1760825226548,0.001,3899.0,3898.9,19.46947313]
[1760825227754,0.001,3899.4,3899.3,8.9961822]
[1760825227956,0.001,3899.4,3899.3,11.5811822]
[1760825228163,0.001,3899.4,3899.3,12.0226822]
[1760825229234,0.001,3899.4,3899.3,15.8926822]